{"text_format":"3","workbook":"xlsx","n_sheets":4,"sheets":["หลักเป้าหมาย","แผนการทำงาน","เกี่ยวกับ","ข้อมูลแผนภูมิ"],"not_rendered":{"charts":1,"defined_names":2},"read":"whole","date_system":"1900"}

{"sheet":"หลักเป้าหมาย","index":0,"n_rows":27,"n_cols":5,"rows_kept":27}
["สร้างแผนการทำงานโดยใส่หลักเป้าหมายและกิจกรรมสำคัญในเวิร์กชีตนี้\nชื่อเรื่องของเวิร์กชีตอยู่ในเซลล์ C1 \nข้อมูลเกี่ยวกับวิธีการใช้เวิร์กชีตนี้ รวมถึงคำแนะนำสำหรับโปรแกรมอ่านหน้าจอได้ใน เกี่ยวกับเวิร์กชีต\nดำเนินต่อโดยนำทางลงในคอลัมน์ A สำหรับคำแนะนำเพิ่มเติม",null,"หลักเป้าหมาย"]
["ส่วนหัวของตารางอยู่ในเซลล์ C2 ถึง E2 ใช้ตัวเลือกเรียงลำดับและกรองเพื่อเรียงลำดับหรือค้นหารายการเฉพาะ\nป้อนหลักเป้าหมายพร้อมกับวันที่และตั้งค่าตำแหน่งสำหรับการใส่หลักเป้าหมายลงในแผนภูมิในตาราง โดยเริ่มตั้งแต่เซลล์ C3\nคอลัมน์ B ถูกซ่อน แผนภูมิถูกสร้างขึ้นจากข้อมูลนี้โดยใช้แถบเลื่อนเพื่อดูกลุ่มไทม์ไลน์ คอลัมน์ B จะช่วยระบุหลักเป้าหมายที่จะใส่ลงในแผนภูมิเมื่อแถบเลื่อนเพิ่มขึ้น \nคำเตือน: การลบหรือปรับเปลี่ยนเนื้อหาในคอลัมน์ B อาจรบกวนการทำงานของการรวมการใส่ข้อมูลลงในแผนภูมิที่สร้างขึ้นในเวิร์กชีตนี้","หมายเลข","ตำแหน่ง","วันที่","หลักเป้าหมาย"]
["ป้อนตำแหน่งสำหรับการป้อนวันที่และหลักเป้าหมายลงในแผนภูมิในเซลล์ C1 ป้อนจำนวนบวกระหว่าง 1 และ 3 เพื่อใส่หลักเป้าหมายลงในแผนภูมิเหนือไทม์ไลน์ ป้อนจำนวนลบระหว่าง 1 และ 3 เพื่อใส่หลักเป้าหมายลงในแผนภูมิใต้ไทม์ไลน์\nป้อนวันที่และหลักเป้าหมายหรือกิจกรรมในคอลัมน์ D และ E ภายในตาราง\nทำซ้ำรูปแบบนี้สำหรับแถวใหม่แต่ละแถวในตารางด้านขวา\nมีตัวอย่างข้อมูลในแถว 3 ถึง 26 ปรับเปลี่ยนหรือลบตัวอย่างเนื้อหาเพื่อสร้างแผนการทำงานของคุณเอง\nไปที่เซลล์ A27 สำหรับคำแนะนำถัดไป",{"$f":"ROW($A1)","v":1},1,{"$f":"TODAY()","v":"2018-06-29"},"เริ่ม"]
[null,{"$f":"ROW($A2)","v":2},-2,{"$f":"D3+10","v":"2018-07-09"},"การวิเคราะห์ปัญหา\nกิจกรรม 1"]
[null,3,1,{"$f":"D4+20","v":"2018-07-29"},"พัฒนากรณีธุรกิจ\nกิจกรรม 1\nกิจกรรม 2"]
[null,4,-1,{"$f":"D5+30","v":"2018-08-28"},"ตรวจทานงานนำเสนอ"]
[null,5,{"v":-0.5,"d":"-1"},{"$f":"D6+40","v":"2018-10-07"},"การเริ่มต้น Exec\nกิจกรรม 1\nกิจกรรม 2"]
[null,6,2,{"$f":"D7+50","v":"2018-11-26"},"จัดชิด Exec\nกิจกรรม 1\nกิจกรรม 2\nกิจกรรม 3"]
[null,7,{"v":0.5,"d":"1"},{"$f":"D8+60","v":"2019-01-25"},"ผู้เกี่ยวข้องซื้อหุ้น"]
[null,8,-1,{"$f":"D9+70","v":"2019-04-05"},"การเลือกทรัพยากร"]
[null,9,{"v":0.5,"d":"1"},{"$f":"D10+80","v":"2019-06-24"},"การสร้างทีม\nกิจกรรม 1 "]
[null,10,-2,{"$f":"D11+90","v":"2019-09-22"},"การเริ่มต้นทีม\nกิจกรรม 1 \nกิจกรรม 2\nกิจกรรม 3\nกิจกรรม 4"]
[null,11,3,{"$f":"D12+100","v":"2019-12-31"},"เริ่มต้นคอลเลกชันข้อมูล"]
[null,12,-1,{"$f":"D13+90","v":"2020-03-30"},"วิเคราะห์ข้อมูล"]
[null,13,1,{"$f":"D14+80","v":"2020-06-18"},"ออกแบบ"]
[null,14,1,{"$f":"D15+70","v":"2020-08-27"},"หลักฐานแนวคิด"]
[null,15,-3,{"$f":"D16+60","v":"2020-10-26"},"การทดสอบและการวิเคราะห์"]
[null,16,-2,{"$f":"D17+50","v":"2020-12-15"},"ออกแบบใหม่"]
[null,17,2,{"$f":"D18+40","v":"2021-01-24"},"พัฒนาใหม่"]
[null,18,-1,{"$f":"D19+30","v":"2021-02-23"},"การทดสอบและการวิเคราะห์"]
[null,19,1,{"$f":"D20+20","v":"2021-03-15"},"ออกแบบใหม่"]
[null,20,-3,{"$f":"D21+10","v":"2021-03-25"},"พัฒนาใหม่"]
[null,21,2,{"$f":"D22+20","v":"2021-04-14"},"ทดสอบขั้นสุดท้าย"]
[null,22,1,{"$f":"D23+30","v":"2021-05-14"},"ทดสอบรุ่นทดลอง"]
[null,23,-3,{"$f":"D24+40","v":"2021-06-23"},"รีวิว"]
[null,24,-2,{"$f":"D25+50","v":"2021-08-12"},"เผยแพร่ไปยังตลาด"]
["เมื่อต้องการเพิ่มแถวลงในตารางหลักเป้าหมายของแผนการทำงาน ให้แทรกแถวใหม่เหนือแถวนี้\nไม่มีคำแนะนำเพิ่มเติมในเวิร์กชีตนี้",null,"เมื่อต้องการเพิ่มหลักเป้าหมายเพิ่มเติม ให้แทรกแถวใหม่เหนือเส้นนี้"]

{"sheet":"แผนการทำงาน","index":1,"n_rows":3,"n_cols":4,"rows_kept":3}
["แผนภูมิแสดงหลักเป้าหมายจากเวิร์กชีตหลักเป้าหมายที่อยู่ในเวิร์กชีตนี้ \nปีจะถูกระบุในเซลล์ B2, C2 และ D2 และมีสไตล์หัวเรื่อง 3\nหลักเป้าหมาย 10 รายการจะถูกใส่ลงในแผนภูมิในแต่ละครั้ง \nใช้แถบเลื่อนในเซลล์ B4 ถึง D4 เพื่อนำทางผ่านแผนการทำงาน\nปีของไทม์ไลน์จะอยู่ในเซล์ B3 ถึง D3\nไม่มีคำแนะนำเพิ่มเติมในเวิร์กชีตนี้"]
[]
[null,{"$f":"ข้อมูลแผนภูมิ!B20","v":2018},{"$f":"ข้อมูลแผนภูมิ!B21","v":""},{"$f":"ข้อมูลแผนภูมิ!B22","v":2019}]

{"sheet":"เกี่ยวกับ","index":2,"n_rows":5,"n_cols":1,"rows_kept":5}
["เกี่ยวกับเวิร์กบุ๊กนี้"]
["คำแนะนำสำหรับโปรแกรมอ่านหน้าจอ:"]
["มี 4 เวิร์กชีตอยู่ในเวิร์กบุ๊กนี้ \n\nหลักเป้าหมาย\nแผนการทำงาน\nเกี่ยวกับ\nข้อมูลแผนภูมิ (ซ่อน)\n\nคำแนะนำสำหรับแต่ละเวิร์กชีตจะอยู่ในคอลัมน์ A โดยเริ่มจากเซลล์ A1 ของแต่ละเวิร์กชีต ซึ่งจะถูกเขียนด้วยข้อความที่ซ่อน แต่ละขั้นตอนจะแนะนำคุณผ่านข้อมูลในแถวนั้น ขั้นตอนแต่ละขั้นที่ตามมายังคงอยู่ในเซลล์ A2, A3 และอื่นๆ ต่อไป เว้นแต่ว่าจะมีคำสั่งที่ชัดแจ้ง ตัวอย่างเช่น ข้อความคำแนะนำอาจพูดว่า \"ทำต่อไปที่เซลล์ A6\" สำหรับขั้นตอนถัดไป \n\nข้อความที่ซ่อนจะไม่ถูกพิมพ์\n\nเมื่อต้องการลบคำแนะนำเหล่านี้ออกจากเวิร์กชีตใด ๆ ให้ทำเพียงแค่ลบคอลัมน์ A ออก\n"]
["แผนการทำงานนี้ใช้ตำแหน่งเพื่อสร้างแผนภูมิ หลักเป้าหมายและกิจกรรม ตำแหน่งสามารถใช้เพื่อเพิ่มน้ำหนักแก่หลักเป้าหมายหรือกิจกรรมได้ เพียงแค่ปรับค่าตามน้ำหนักที่คุณต้องการ ตัวอย่างเช่น หลักเป้าหมาย/กิจกรรมที่ 3 อาจมีน้ำหนักมากกว่ามากกว่าหลักเป้าหมาย/กิจกรรมที่ 2 เมื่อต้องการระบุสิ่งนี้บนแผนภูมิ เพียงสร้างค่าตำแหน่งหลักเป้าหมาย/กิจกรรมที่ 3 ที่สูงกว่าค่าสำหรับหลักเป้าหมาย/กิจกรรมที่ 2  \n"]
["นี่คือคำแนะนำสุดท้ายในเวิร์กชีตนี้"]

{"sheet":"ข้อมูลแผนภูมิ","index":3,"n_rows":26,"n_cols":4,"rows_kept":26,"hidden":true}
["ข้อมูลสำหรับการสร้างการใส่ข้อมูลลงในแผนภูมิแบบไดนามิกอยู่ในเวิร์กชีตนี้ ห้ามลบเวิร์กชีตนี้!\nการลบเวิร์กชีตนี้อาจทำให้สูญเสียความสามารถแบบไดนามิกของเวิร์กบุ๊ก","ห้ามลบเวิร์กชีตนี้!"]
["ชื่อของตารางอยู่ในเซลล์ B2","เนื้อหาของแผนภูมิแบบไดนามิก"]
["ส่วนหัวของตารางอยู่ในเซลล์ B3 ถึง D3 \nตารางนี้จะอัปเดตโดยอัตโนมัติตามเนื้อหาที่ป้อนในเวิร์กชีตหลักเป้าหมาย\nคำเตือน: การปรับเปลี่ยนหรือลบเนื้อหาในตารางนี้อาจทำให้สูญเสียความสามารถในการอัปเดตแบบไดนามิกของแผนภูมิแผนการทำงานในเวิร์กชีตแผนการทำงาน\nไปที่เซลล์ A15 สำหรับคำแนะนำถัดไป","วันที่","เหตุการณ์","ตำแหน่ง"]
[null,{"$f":"IFERROR(IF(LEN(หลักเป้าหมาย!D3)=0,\"\",INDEX(RoadmapMilestones[],หลักเป้าหมาย!$B3+$B$17,3)),\"\")","v":"2018-06-29"},{"$f":"IFERROR(IF(LEN(หลักเป้าหมาย!E3)=0,\"\",INDEX(RoadmapMilestones[],หลักเป้าหมาย!$B3+$B$17,4)),\"\")","v":"เริ่ม"},{"$f":"IFERROR(INDEX(RoadmapMilestones[],หลักเป้าหมาย!$B3+$B$17,2),\"\")","v":1}]
[null,{"$f":"IFERROR(IF(LEN(หลักเป้าหมาย!D4)=0,\"\",INDEX(RoadmapMilestones[],หลักเป้าหมาย!$B4+$B$17,3)),\"\")","v":"2018-07-09"},{"$f":"IFERROR(IF(LEN(หลักเป้าหมาย!E4)=0,\"\",INDEX(RoadmapMilestones[],หลักเป้าหมาย!$B4+$B$17,4)),\"\")","v":"การวิเคราะห์ปัญหา\nกิจกรรม 1"},{"$f":"IFERROR(INDEX(RoadmapMilestones[],หลักเป้าหมาย!$B4+$B$17,2),\"\")","v":-2}]
[null,{"$f":"IFERROR(IF(LEN(หลักเป้าหมาย!D5)=0,\"\",INDEX(RoadmapMilestones[],หลักเป้าหมาย!$B5+$B$17,3)),\"\")","v":"2018-07-29"},{"$f":"IFERROR(IF(LEN(หลักเป้าหมาย!E5)=0,\"\",INDEX(RoadmapMilestones[],หลักเป้าหมาย!$B5+$B$17,4)),\"\")","v":"พัฒนากรณีธุรกิจ\nกิจกรรม 1\nกิจกรรม 2"},{"$f":"IFERROR(INDEX(RoadmapMilestones[],หลักเป้าหมาย!$B5+$B$17,2),\"\")","v":1}]
[null,{"$f":"IFERROR(IF(LEN(หลักเป้าหมาย!D6)=0,\"\",INDEX(RoadmapMilestones[],หลักเป้าหมาย!$B6+$B$17,3)),\"\")","v":"2018-08-28"},{"$f":"IFERROR(IF(LEN(หลักเป้าหมาย!E6)=0,\"\",INDEX(RoadmapMilestones[],หลักเป้าหมาย!$B6+$B$17,4)),\"\")","v":"ตรวจทานงานนำเสนอ"},{"$f":"IFERROR(INDEX(RoadmapMilestones[],หลักเป้าหมาย!$B6+$B$17,2),\"\")","v":-1}]
[null,{"$f":"IFERROR(IF(LEN(หลักเป้าหมาย!D7)=0,\"\",INDEX(RoadmapMilestones[],หลักเป้าหมาย!$B7+$B$17,3)),\"\")","v":"2018-10-07"},{"$f":"IFERROR(IF(LEN(หลักเป้าหมาย!E7)=0,\"\",INDEX(RoadmapMilestones[],หลักเป้าหมาย!$B7+$B$17,4)),\"\")","v":"การเริ่มต้น Exec\nกิจกรรม 1\nกิจกรรม 2"},{"$f":"IFERROR(INDEX(RoadmapMilestones[],หลักเป้าหมาย!$B7+$B$17,2),\"\")","v":-0.5}]
[null,{"$f":"IFERROR(IF(LEN(หลักเป้าหมาย!D8)=0,\"\",INDEX(RoadmapMilestones[],หลักเป้าหมาย!$B8+$B$17,3)),\"\")","v":"2018-11-26"},{"$f":"IFERROR(IF(LEN(หลักเป้าหมาย!E8)=0,\"\",INDEX(RoadmapMilestones[],หลักเป้าหมาย!$B8+$B$17,4)),\"\")","v":"จัดชิด Exec\nกิจกรรม 1\nกิจกรรม 2\nกิจกรรม 3"},{"$f":"IFERROR(INDEX(RoadmapMilestones[],หลักเป้าหมาย!$B8+$B$17,2),\"\")","v":2}]
[null,{"$f":"IFERROR(IF(LEN(หลักเป้าหมาย!D9)=0,\"\",INDEX(RoadmapMilestones[],หลักเป้าหมาย!$B9+$B$17,3)),\"\")","v":"2019-01-25"},{"$f":"IFERROR(IF(LEN(หลักเป้าหมาย!E9)=0,\"\",INDEX(RoadmapMilestones[],หลักเป้าหมาย!$B9+$B$17,4)),\"\")","v":"ผู้เกี่ยวข้องซื้อหุ้น"},{"$f":"IFERROR(INDEX(RoadmapMilestones[],หลักเป้าหมาย!$B9+$B$17,2),\"\")","v":0.5}]
[null,{"$f":"IFERROR(IF(LEN(หลักเป้าหมาย!D10)=0,\"\",INDEX(RoadmapMilestones[],หลักเป้าหมาย!$B10+$B$17,3)),\"\")","v":"2019-04-05"},{"$f":"IFERROR(IF(LEN(หลักเป้าหมาย!E10)=0,\"\",INDEX(RoadmapMilestones[],หลักเป้าหมาย!$B10+$B$17,4)),\"\")","v":"การเลือกทรัพยากร"},{"$f":"IFERROR(INDEX(RoadmapMilestones[],หลักเป้าหมาย!$B10+$B$17,2),\"\")","v":-1}]
[null,{"$f":"IFERROR(IF(LEN(หลักเป้าหมาย!D11)=0,\"\",INDEX(RoadmapMilestones[],หลักเป้าหมาย!$B11+$B$17,3)),\"\")","v":"2019-06-24"},{"$f":"IFERROR(IF(LEN(หลักเป้าหมาย!E11)=0,\"\",INDEX(RoadmapMilestones[],หลักเป้าหมาย!$B11+$B$17,4)),\"\")","v":"การสร้างทีม\nกิจกรรม 1 "},{"$f":"IFERROR(INDEX(RoadmapMilestones[],หลักเป้าหมาย!$B11+$B$17,2),\"\")","v":0.5}]
[null,{"$f":"IFERROR(IF(LEN(หลักเป้าหมาย!D12)=0,\"\",INDEX(RoadmapMilestones[],หลักเป้าหมาย!$B12+$B$17,3)),\"\")","v":"2019-09-22"},{"$f":"IFERROR(IF(LEN(หลักเป้าหมาย!E12)=0,\"\",INDEX(RoadmapMilestones[],หลักเป้าหมาย!$B12+$B$17,4)),\"\")","v":"การเริ่มต้นทีม\nกิจกรรม 1 \nกิจกรรม 2\nกิจกรรม 3\nกิจกรรม 4"},{"$f":"IFERROR(INDEX(RoadmapMilestones[],หลักเป้าหมาย!$B12+$B$17,2),\"\")","v":-2}]
[]
["สามารถเลื่อนดูแผนการทำงานได้ด้วยความช่วยเหลือของค่าที่เพิ่มขึ้น ชื่อของความสามารถนี้อยู่ในเซลล์ B15\nตารางที่มีหัวเรื่องและค่าเดียวจะอยู่ในเซลล์ B16 และ B17\nไปที่เซลล์ A19 สำหรับคำแนะนำถัดไป","ความสามารถในการเลื่อน"]
[null,"เพิ่มทีละแถว"]
[null,0]
[]
["แผนภูมิแผนการทำงานจะใส่ปีสำหรับไทม์ไลน์ เมื่อต้องการทำเช่นนี้ ต้องใช้ปีจากรายการหลักเป้าหมาย \nชื่อของส่วนนี้คือ \"ปี\" ในเซลล์ B19 \nค่าปีจะถูกสร้างขึ้นโดยอัตโนมัติในเซลล์ C20 ถึง C22\nคำเตือน: การลบหรือปรับเปลี่ยนปีเหล่านี้อาจส่งผลต่อความแม่นยำของการใส่ข้อมูลลงในแผนภูมิของแผนภูมิแผนการทำงาน\nไปที่เซลล์ A24 สำหรับคำแนะนำถัดไป","ปี"]
[null,{"$f":"IFERROR(YEAR(B4),\"\")","v":2018},"<-- ปีสำหรับตำแหน่งเริ่มต้นของแผนการทำงาน"]
[null,{"$f":"IFERROR(IF(YEAR($B$9)=$B$20,\"\",YEAR($B$9)),\"\")","v":""},"<-- ปีสำหรับช่วงกลางของแผนการทำงาน ซึ่งอาจว่างเปล่าถ้าเป็นปีเดียวกับตำแหน่งเริ่มต้นของแผนการทำงาน"]
[null,{"$f":"IFERROR(IF(YEAR($B$13)=$B$20,\"\",YEAR($B$13)),\"\")","v":2019},"<-- ปีสำหรับตำแหน่งสุดท้ายของแผนการทำงาน ซึ่งอาจว่างเปล่าถ้าเป็นปีเดียวกับตำแหน่งเริ่มต้นของแผนการทำงาน"]
[]
["ตัวทำเครื่องหมายโดนัทในแผนภูมิแผนการทำงานมีวันที่จากเนื้อหาแผนภูมิแบบไดนามิกในเวิร์กชีตนี้ วันที่คือวันที่แรกในเซลล์ C24 วันที่กลางในเซลล์ C25 และวันที่สุดท้ายในเซลล์ C26\nไม่มีคำแนะนำเพิ่มเติมในเวิร์กชีตนี้","วันที่แรก",{"$f":"B4","v":"2018-06-29"}]
[null,"วันที่กลาง",{"$f":"B9","v":"2018-11-26"}]
[null,"วันที่สุดท้าย",{"$f":"B13","v":"2019-09-22"}]